bitfinex/quotes_ETHUSD_20220123
["timestamp","ask_amount","ask_price","bid_price","bid_amount"]
[1642974272850,1.2994897,2437.8,2436.1,0.01228314]
[1642974272851,1.10676649,2437.4,2436.1,0.01228314]
[1642974274052,1.26057668,2437.0,2436.4,1.38871564]
[1642974274455,24.19,2437.6,2436.4,1.38871564]
[1642974274653,24.19,2437.6,2436.1,0.01228314]
[1642974274905,0.3,2437.5,2436.1,0.01228314]
[1642974275107,1.3,2437.5,2436.1,0.01228314]
[1642974275315,1.3,2437.5,2435.7,0.20538]
[1642974275521,1.794,2437.5,2435.7,0.20538]
[1642974275813,1.38745395,2436.9,2436.1,1.13621214]
[1642974276415,1.38745395,2436.9,2435.4,0.164]
[1642974276814,1.38745395,2436.9,2435.4,0.40001478]
[1642974277013,1.38745395,2436.9,2435.9,0.0124476]
[1642974277314,6.8663,2437.4,2435.9,0.0124476]
[1642974277315,6.8663,2437.4,2435.9,0.25518817]
[1642974277513,3.116,2437.4,2435.9,0.25518817]
[1642974277714,3.116,2437.4,2436.0,2.30349899]
[1642974277914,1.1997,2437.7,2436.4,0.97303459]
[1642974278219,0.13819997,2437.9,2436.0,2.27187807]
[1642974278415,1.25099219,2437.3,2436.5,1.48306967]
[1642974278856,1.25099219,2437.3,2435.9,0.0124476]
[1642974279256,1.25099219,2437.3,2436.0,0.20538]
[1642974279459,1.25099219,2437.3,2436.0,2.25339805]
[1642974279664,1.25099219,2437.3,2436.5,0.01297235]
[1642974279861,0.13819997,2437.9,2436.6,0.20538]
[1642974280060,0.13819997,2437.9,2436.7,0.99255156]
[1642974280561,0.13819997,2437.9,2436.1,2.0]
[1642974280763,1.30693421,2437.0,2436.2,1.09358979]
[1642974280961,1.30693421,2437.0,2436.3,0.01280697]
[1642974281161,0.13819997,2437.9,2436.3,0.01280697]
[1642974281360,0.13819997,2437.9,2436.3,2.01280697]
[1642974281563,0.13819997,2437.9,2436.6,1.15583129]
[1642974281764,0.13819997,2437.9,2436.8,0.01297221]
[1642974281965,0.00271896,2438.6,2436.9,0.20538]
[1642974282167,1.12095631,2438.3,2437.5,1.20415407]
[1642974282400,0.01265495,2438.7,2437.5,2.31624644]
[1642974282801,0.01265495,2438.7,2437.5,1.20415407]
[1642974282998,0.01265495,2438.7,2437.5,2.20785407]
[1642974283601,1.37667127,2438.4,2437.5,2.20785407]
[1642974284405,0.06416163,2439.1,2437.6,2.18574065]
[1642974284406,1.06144267,2439.1,2437.6,2.18574065]
[1642974284607,0.06144267,2439.1,2437.6,2.18574065]
[1642974284805,0.06144267,2439.1,2437.6,2.39112065]
[1642974285205,0.06144267,2439.1,2437.6,2.70152817]
[1642974285406,1.0936006,2439.0,2438.2,1.12140412]
[1642974285607,1.0936006,2439.0,2437.6,2.66222065]
[1642974286048,1.0936006,2439.0,2437.6,0.2711]
[1642974286447,1.0936006,2439.0,2437.9,1.34656043]
[1642974286646,1.12242906,2438.6,2437.6,0.2711]
[1642974286849,1.12242906,2438.6,2437.5,1.0037]
[1642974287049,1.12242906,2438.6,2437.4,0.01203279]
[1642974287248,1.12242906,2438.6,2437.3,0.20538]
[1642974287449,1.12242906,2438.6,2437.1,3.33219798]
[1642974287650,0.01208578,2438.8,2437.4,1.44475312]
[1642974287857,1.55816163,2439.1,2437.4,1.44475312]
[1642974287858,0.06416163,2439.1,2437.5,26.5980808]
[1642974288052,0.06144267,2439.1,2437.8,1.10522451]
[1642974288451,0.06144267,2439.1,2438.0,0.20538]
[1642974288656,0.06144267,2439.1,2437.9,26.6412549]
[1642974288657,0.06144267,2439.1,2437.9,0.36938]
[1642974288855,1.40427996,2439.1,2438.3,1.26389406]
[1642974289153,1.40427996,2439.1,2437.9,2.0]
[1642974289554,1.40427996,2439.1,2437.8,2.74785812]
[1642974289801,1.40427996,2439.1,2437.8,2.74660477]
[1642974289995,1.40427996,2439.1,2438.2,1.10685801]
[1642974290597,1.40427996,2439.1,2437.8,2.20538]
[1642974290797,1.40427996,2439.1,2437.8,0.20538]
[1642974290998,1.40427996,2439.1,2437.6,2.7514258]
[1642974291397,1.40427996,2439.1,2437.6,5.05381504]
[1642974291597,1.40427996,2439.1,2438.0,0.93285808]
[1642974291799,1.40427996,2439.1,2438.1,25.59526065]
[1642974291998,1.40427996,2439.1,2437.6,2.7514258]
[1642974292198,1.41632651,2439.1,2437.6,0.20538]
[1642974293199,1.13578908,2438.7,2437.9,1.33316758]
[1642974293398,0.07348922,2439.1,2437.9,1.33316758]
[1642974294252,0.07348922,2439.1,2437.9,1.18316758]
[1642974294455,1.2906682,2438.8,2437.9,1.18316758]
[1642974294857,1.2906682,2438.8,2437.7,1.0261015]
[1642974295055,1.2906682,2438.8,2437.3,1.43725361]
[1642974295257,0.01238238,2438.5,2437.3,1.43725361]
[1642974295457,0.01238238,2438.5,2437.0,0.20538]
[1642974295654,0.01238238,2438.5,2437.0,3.70538]
[1642974295855,0.01238238,2438.5,2437.0,0.20538]
[1642974296055,0.01238238,2438.5,2437.1,1.07825101]
[1642974296256,0.01238238,2438.5,2437.5,0.86827967]
[1642974296462,0.00271896,2439.0,2437.5,0.86827967]
[1642974296660,0.00271896,2439.0,2437.6,0.20538]
[1642974296856,0.06144267,2439.1,2437.3,2.0]
[1642974297055,1.09765619,2438.8,2438.0,1.4062226]
[1642974297306,0.06144267,2439.1,2438.0,1.4062226]
[1642974297902,0.06144267,2439.1,2438.1,2.27443967]
[1642974298102,0.06144267,2439.1,2438.4,0.01209319]
[1642974298307,0.06144267,2439.1,2438.5,0.2437151]
[1642974298503,0.06144267,2439.1,2438.6,0.19932455]
[1642974298703,0.04,2439.5,2438.7,7.10538]
[1642974298902,0.04,2439.5,2438.7,1.10311678]
[1642974299108,0.04,2439.5,2438.7,0.20538]
[1642974299301,0.04,2439.5,2438.6,2.54528]
[1642974299505,0.04,2439.5,2438.4,0.01209319]
[1642974299708,0.04,2439.5,2437.9,2.20538]
[1642974299905,1.48328448,2438.6,2437.9,2.20538]
[1642974300108,1.48328448,2438.6,2437.8,2.83337353]
[1642974300506,1.48328448,2438.6,2437.8,1.43725361]
[1642974300907,1.48328448,2438.6,2436.7,3.5]
[1642974301148,2.0,2438.5,2436.7,3.5]
[1642974301347,2.0,2438.5,2436.7,4.47087416]
[1642974301555,2.494,2439.0,2437.5,0.83700464]
[1642974301757,0.13819997,2439.1,2437.6,2.0]
[1642974301951,0.13819997,2439.1,2437.4,1.9971795]
[1642974302150,0.13819997,2439.1,2437.4,2.00970026]
[1642974302349,0.13819997,2439.1,2437.4,2.04231651]
[1642974302551,1.534727,2438.7,2437.9,1.10169881]
[1642974302751,1.534727,2438.7,2437.9,1.96906947]
[1642974303152,1.534727,2438.7,2437.9,1.10169881]
[1642974303454,1.534727,2438.7,2437.4,0.01252076]
[1642974303657,0.01236031,2438.5,2437.4,0.01252076]
[1642974304259,0.494,2438.4,2437.4,0.01252076]
[1642974304654,1.23244257,2437.5,2436.9,1.43725361]
[1642974304907,1.23244257,2437.5,2436.7,1.09682401]
[1642974305104,1.23244257,2437.5,2436.5,1.04505624]
[1642974305305,0.494,2438.4,2436.9,1.04723708]
[1642974305503,0.00271896,2438.1,2436.9,0.01213122]
[1642974306007,0.00271896,2438.1,2436.4,2.42068429]
[1642974306210,1.494,2438.4,2436.4,2.43317661]
[1642974306408,0.494,2438.4,2437.0,1.29409198]
[1642974306608,0.494,2438.4,2437.2,1.13907609]
[1642974306816,0.494,2438.4,2437.0,1.29409198]
[1642974307609,1.44292601,2437.6,2437.0,1.29409198]
[1642974307908,24.20236031,2438.5,2437.2,1.11472648]
[1642974308309,24.20236031,2438.5,2436.7,1.0265924]
[1642974308550,1.0,2438.4,2436.6,2.0532914]
[1642974308957,1.21544491,2437.4,2436.6,3.52930186]
[1642974309154,5.7216,2438.3,2436.6,3.52930186]
[1642974309359,0.1640329,2437.5,2436.8,1.13511984]
[1642974309660,0.1640329,2437.5,2436.6,3.52930186]
[1642974309856,0.1640329,2437.5,2436.6,2.0532914]
[1642974310057,0.1640329,2437.5,2436.3,0.7706]
[1642974310555,0.1640329,2437.5,2436.9,0.94698651]
[1642974310755,0.1640329,2437.5,2437.3,1.15495087]
[1642974310958,0.1640329,2437.5,2436.6,0.20538]
[1642974310959,1.40044799,2438.4,2437.8,1.09084238]
[1642974311155,1.40044799,2438.4,2437.4,4.66440929]
[1642974311156,1.40044799,2438.4,2437.4,1.1767486]
[1642974311757,14.63132279,2439.1,2437.4,1.16440929]
[1642974311966,3.8785,2438.9,2437.7,1.0262602]
[1642974312311,5.95218497,2439.1,2437.7,2.11425101]
[1642974312698,0.10618497,2439.1,2437.7,2.11425101]
[1642974312899,1.26695487,2438.7,2437.9,1.27706148]
[1642974313100,1.26695487,2438.7,2437.5,2.20538]
[1642974313300,1.26695487,2438.7,2437.4,2.052491]
[1642974313906,1.26695487,2438.7,2437.4,2.99110575]
[1642974314106,1.38531621,2438.3,2437.6,1.15056002]
[1642974314307,0.10618497,2439.1,2437.8,0.98207844]
[1642974314511,0.10890864,2439.1,2437.6,1.15056002]
[1642974315004,0.10890864,2439.1,2437.6,1.10056002]
[1642974315005,0.10618497,2439.1,2437.6,1.10056002]
[1642974315405,1.44903718,2438.5,2437.6,1.10056002]
[1642974315608,1.44903718,2438.5,2437.6,2.0920201]
[1642974315807,1.44903718,2438.5,2437.3,2.09749117]
[1642974316049,1.44903718,2438.5,2437.3,0.04491117]
[1642974316250,2.29324055,2438.4,2437.3,0.04491117]
[1642974316450,2.32252388,2438.4,2437.3,0.04491117]
[1642974316654,1.31711139,2437.4,2436.8,2.05291]
[1642974316855,27.5319,2438.3,2436.7,1.0267007]
[1642974317059,0.7915,2437.9,2436.7,1.0267007]
[1642974317256,0.7915,2437.9,2436.4,7.43]
[1642974317856,7.8541,2438.3,2436.4,31.65378894]
[1642974318065,0.01248415,2438.4,2437.7,1.07505981]
[1642974318264,0.00272367,2438.7,2438.1,1.08584334]
[1642974318463,0.00272367,2438.7,2437.5,0.01227345]
[1642974318659,4.05588879,2439.1,2437.5,0.01227345]
[1642974318660,2.0,2439.0,2437.5,0.01227345]
[1642974318860,0.09328879,2439.1,2437.5,0.01227345]
[1642974319261,0.09328879,2439.1,2437.5,0.21765345]
[1642974319563,1.30105672,2438.6,2437.5,0.01227345]
[1642974319816,1.30105672,2438.6,2437.7,1.02617]
[1642974320208,1.30105672,2438.6,2437.5,0.01227345]
[1642974320408,1.30105672,2438.6,2437.4,2.05241]
[1642974320609,1.30105672,2438.6,2437.4,3.02310322]
[1642974320808,1.30105672,2438.6,2437.6,1.13365652]
[1642974321410,1.30105672,2438.6,2437.8,0.88209407]
[1642974321808,1.30105672,2438.6,2437.6,1.13365652]
[1642974322410,0.01285717,2438.9,2437.6,1.13365652]
[1642974323011,0.01285717,2438.9,2437.9,1.02896168]
[1642974323555,1.1277685,2438.7,2437.6,1.13365652]
[1642974323755,1.1277685,2438.7,2438.0,1.18725705]
[1642974323959,0.02,2439.0,2438.0,1.40556152]
[1642974324157,0.02,2439.0,2438.1,0.03838753]
[1642974324358,0.02,2439.0,2438.2,0.25029117]
[1642974324561,0.02,2439.0,2438.3,0.92084691]
[1642974324763,0.02,2439.0,2438.2,0.04491117]
[1642974324962,1.31094986,2438.7,2438.2,0.04491117]
[1642974325159,0.02,2439.0,2438.2,0.04491117]
[1642974325559,0.02,2439.0,2438.3,0.20538]
[1642974325759,0.02,2439.0,2438.2,0.99097103]
[1642974326260,1.52708553,2438.9,2438.2,0.99097103]
[1642974326561,1.52708553,2438.9,2438.2,0.04491117]
[1642974327602,1.52708553,2438.9,2438.2,0.96602624]
[1642974328001,1.52708553,2438.9,2438.2,0.04491117]
[1642974329205,1.48947554,2438.3,2438.2,0.04491117]
[1642974329607,1.48947554,2438.3,2437.4,4.11753953]
[1642974329809,1.48947554,2438.3,2437.1,5.17425361]
[1642974330014,1.48947554,2438.3,2437.1,5.01025361]
[1642974330207,0.01286514,2438.6,2437.1,7.01025361]
[1642974330410,0.02,2439.0,2437.9,0.01265966]
[1642974330709,0.02272367,2439.0,2438.0,0.86338]
[1642974330907,0.02272367,2439.0,2438.0,0.69938]
[1642974331156,0.02,2439.0,2438.1,1.231394]
[1642974331355,0.02,2439.0,2438.8,1.45248681]
[1642974331856,0.02,2439.0,2438.9,6.49578685]
[1642974332056,0.04,2439.5,2439.0,5.0]
[1642974332455,0.04,2439.5,2439.0,5.04491117]
[1642974332661,0.04,2439.9,2439.1,0.69938]
[1642974332859,0.04,2439.9,2439.2,7.68957693]
[1642974333056,0.04206334,2439.8,2439.3,0.494]
[1642974333254,0.04,2439.9,2439.3,0.494]
[1642974333255,0.04,2439.9,2439.4,8.78590452]
[1642974333461,0.04,2439.9,2439.4,9.27990452]
[1642974333662,0.0001,2440.0,2439.9,7.82608277]
[1642974333864,0.0001,2440.0,2439.9,2.62608277]
[1642974334463,0.04,2440.1,2439.9,2.62608277]
[1642974334464,0.04,2440.1,2440.0,7.65]
[1642974334664,0.04,2440.8,2440.0,7.68724049]
[1642974334908,0.04,2440.8,2440.3,1.0250154]
[1642974335110,0.04,2440.8,2440.4,0.69938]
[1642974335312,0.04,2440.8,2440.7,1.37852706]
[1642974335510,0.04,2440.8,2440.7,0.494]
[1642974335707,0.04,2440.8,2440.7,0.01600938]
[1642974335910,0.04,2440.8,2440.2,0.1638]
[1642974336609,0.04,2440.8,2440.0,1.15838109]
[1642974336808,0.04,2440.8,2440.0,1.65238109]
[1642974337215,0.04,2440.8,2440.0,0.494]
[1642974337613,0.03,2441.0,2440.3,1.5128779]
[1642974338012,0.03,2441.0,2439.6,2.21411]
[1642974338219,0.03,2441.0,2439.7,0.494]
[1642974338220,2.03,2441.0,2439.7,0.494]
[1642974338416,2.03,2441.0,2439.5,0.1638]
[1642974338666,0.01291786,2440.2,2439.5,0.1638]
[1642974339064,2.0,2440.8,2439.5,0.1638]
[1642974339267,2.50681519,2440.8,2439.5,0.1638]
[1642974340065,1.2320059,2440.7,2439.5,0.1638]
[1642974340270,24.19,2440.6,2439.5,0.1638]
[1642974340472,1.2320059,2440.7,2439.5,0.1638]
[1642974340671,2.0,2440.6,2439.5,0.1638]
[1642974341473,2.0,2440.6,2439.0,0.04491117]
[1642974341474,1.45785345,2439.2,2439.0,0.04491117]
[1642974341670,1.45785345,2439.2,2438.7,0.01235567]
[1642974341872,0.494,2440.5,2438.5,4.3249142]
[1642974341873,0.50654883,2440.2,2438.5,4.3249142]
[1642974342314,2.0,2440.1,2438.5,2.49786092]
[1642974342718,2.0,2440.1,2438.9,0.98613231]
[1642974342920,1.29053098,2439.5,2438.5,1.53310054]
[1642974343126,1.29053098,2439.5,2438.5,0.20538]
[1642974343318,1.29053098,2439.5,2438.4,0.04491117]
[1642974343918,2.27120315,2439.4,2438.4,0.04491117]
[1642974344122,1.47545986,2439.0,2438.4,0.04491117]
[1642974344521,3.44204946,2439.9,2438.4,0.04491117]
[1642974345725,1.0,2439.8,2438.4,0.04491117]
[1642974346052,1.09565905,2439.1,2438.4,0.04491117]
[1642974346858,5.1351,2439.9,2438.8,0.86293418]
[1642974347061,0.00262985,2440.0,2438.9,0.01281381]
[1642974348058,1.50583055,2439.6,2438.9,0.01281381]
[1642974348459,1.50583055,2439.6,2438.5,2.0]
[1642974348660,1.50583055,2439.6,2438.4,0.04491117]
[1642974349060,1.40602124,2438.5,2438.4,0.04491117]
[1642974349262,0.01228888,2439.8,2438.0,0.01257628]
[1642974349461,7.65,2439.6,2437.9,2.98279331]
[1642974349666,0.00262582,2439.9,2439.1,1.07423708]
[1642974349667,0.49662582,2439.9,2439.1,1.07423708]
[1642974349909,5.85004949,2440.3,2438.7,0.2178602]
[1642974350309,1.2245013,2439.9,2438.7,0.2178602]
[1642974350510,1.2245013,2439.9,2438.7,0.0124802]
[1642974351615,1.51756378,2439.3,2438.5,1.43707254]
[1642974351811,0.0126298,2440.0,2438.5,1.43707254]
[1642974352213,0.0126298,2440.0,2438.5,1.44978333]
[1642974353116,1.30204339,2439.6,2438.5,1.44978333]
[1642974353424,4.14878876,2440.4,2439.8,0.88591216]
[1642974353425,0.23148876,2440.4,2439.8,0.88591216]
[1642974353666,0.23148876,2440.4,2439.8,0.8162]
[1642974354265,1.17206732,2440.2,2439.8,0.8162]
[1642974354864,1.17206732,2440.2,2439.4,1.53400311]
[1642974355269,1.17206732,2440.2,2439.1,0.01282335]
[1642974355665,1.17206732,2440.2,2438.7,2.05116]
[1642974355867,1.17206732,2440.2,2438.8,2.21794821]
[1642974356068,1.17206732,2440.2,2438.8,3.24358621]
[1642974356265,1.17206732,2440.2,2439.4,1.15390043]
[1642974356666,0.23148876,2440.4,2439.4,1.15390043]
[1642974357067,0.23148876,2440.4,2439.4,1.00390043]
[1642974357903,0.23148876,2440.4,2439.4,1.85614905]
[1642974358401,0.23148876,2440.4,2439.4,1.00390043]
[1642974359208,0.23148876,2440.4,2439.8,1.54755715]
[1642974359408,0.23148876,2440.4,2439.9,1.04032882]
[1642974359611,0.03,2441.0,2440.3,0.93455759]
[1642974360008,0.03,2441.0,2440.3,2.05335759]
[1642974360209,0.03,2441.0,2440.5,1.10533432]
[1642974360408,0.03,2441.0,2440.3,1.1188]
[1642974361077,0.03,2441.0,2440.0,0.04491117]
[1642974361275,0.03,2441.0,2440.0,0.99230387]
[1642974361469,1.36525879,2440.8,2440.0,2.26812849]
[1642974361666,0.03,2441.0,2440.4,0.88494577]
[1642974361872,0.03,2441.0,2440.0,1.32073579]
[1642974362868,1.31453223,2440.6,2440.0,0.04491117]
[1642974363073,1.31453223,2440.6,2439.4,0.1638]
[1642974363471,2.60911136,2440.5,2439.4,0.1638]
[1642974363874,1.35758401,2439.6,2439.4,0.1638]
[1642974364670,2.0,2440.3,2439.4,0.1638]
[1642974364912,2.14288014,2440.7,2439.4,0.1638]
[1642974365110,2.10552232,2440.7,2439.4,0.1638]
[1642974365910,3.10552232,2440.7,2439.4,0.1638]
[1642974366111,3.40552232,2440.7,2439.4,0.1638]
[1642974366712,3.70552232,2440.7,2438.7,0.0123185]
[1642974366916,0.01229504,2440.1,2438.5,0.04491117]
[1642974367114,0.494,2440.0,2438.5,0.04491117]
[1642974367312,0.52999577,2440.0,2438.5,0.04491117]
[1642974367713,3.639,2439.9,2438.5,0.04491117]
[1642974367914,3.639,2439.9,2438.6,0.84049777]
[1642974367915,1.10088352,2439.1,2438.6,0.84049777]
[1642974368756,1.10088352,2439.1,2438.5,0.04491117]
[1642974369164,2.59160724,2439.4,2438.5,0.04491117]
[1642974369565,5.6361,2439.7,2438.5,0.04491117]
[1642974369760,3.2166,2439.7,2439.2,1.04003115]
[1642974369959,0.50629504,2440.1,2438.5,0.04491117]
[1642974369960,0.01229504,2440.1,2438.5,0.04491117]
[1642974370163,1.27376994,2440.0,2439.2,1.45083795]
[1642974370362,1.27376994,2440.0,2438.9,0.01227231]
[1642974370762,2.35363357,2439.9,2438.9,0.01227231]
[1642974370963,2.35363357,2439.9,2438.5,0.04491117]
[1642974371363,1.28502242,2438.9,2438.5,0.04491117]
[1642974371872,2.26537137,2438.8,2438.1,0.0125017]
[1642974372064,2.26537137,2438.8,2437.6,0.20538]
[1642974372305,2.2767373,2438.8,2437.6,0.20538]
[1642974372506,1.58502242,2438.9,2437.5,7.43]
[1642974372711,1.2392147,2438.1,2437.4,1.19473526]
[1642974373016,6.9708,2438.8,2437.4,1.18239802]
[1642974373212,0.494,2438.7,2437.3,0.04491117]
[1642974373414,24.19,2438.5,2436.7,0.01291821]
[1642974373610,0.50643186,2438.4,2436.7,0.01291821]
[1642974373811,1.50643186,2438.4,2436.7,0.01291821]
[1642974374017,3.80643186,2438.4,2436.7,0.01291821]
[1642974374211,1.51360193,2437.9,2437.3,0.93082778]
[1642974374417,0.494,2438.2,2437.7,0.85925919]
[1642974374618,5.1542,2438.7,2437.2,0.20538]
[1642974374816,1.2268,2438.8,2437.2,0.21825422]
[1642974375013,2.0,2439.0,2437.3,0.164]
[1642974375214,2.0,2439.0,2437.2,0.01287422]
[1642974375413,1.2628531,2438.9,2438.1,1.36506661]
[1642974375814,1.2628531,2438.9,2438.3,1.11430313]
[1642974375815,1.84036482,2438.9,2438.3,1.11430313]
[1642974376062,2.0,2439.0,2438.3,1.11430313]
[1642974376258,2.59274261,2439.2,2438.3,1.11430313]
[1642974376457,2.59274261,2439.2,2438.3,1.06430313]
[1642974376864,0.23148876,2439.2,2438.3,0.96430313]
[1642974377068,0.23148876,2439.2,2438.8,0.86166559]
[1642974377265,0.23148876,2439.2,2438.3,0.8096]
[1642974377467,0.23148876,2439.2,2438.2,0.26]
[1642974378470,1.23702779,2439.1,2438.7,1.00053109]
[1642974378670,0.23148876,2439.2,2438.7,1.00053109]
[1642974379268,0.23148876,2439.2,2438.3,1.48252211]
[1642974379470,2.31628498,2439.1,2438.3,1.48252211]
[1642974379677,2.31628498,2439.1,2438.1,0.3023]
[1642974380303,0.72751172,2438.6,2438.1,1.13080749]
[1642974380505,3.37552447,2439.1,2438.1,1.13080749]
[1642974380905,0.23148876,2439.2,2438.1,1.13080749]
[1642974381510,0.95900048,2439.2,2438.6,0.88161275]
[1642974381708,0.23148876,2439.2,2438.6,0.88161275]
[1642974381911,1.51169917,2439.3,2438.6,0.88161275]
[1642974382115,1.51169917,2439.3,2438.1,0.3023]
[1642974382710,1.2423,2439.8,2438.1,0.3023]
[1642974382909,0.01272867,2439.6,2438.1,0.3023]
[1642974383113,0.72751172,2439.1,2438.1,0.3023]
[1642974383958,1.9532416,2439.1,2438.3,1.20335116]
[1642974384156,2.2532416,2439.1,2438.2,0.99463105]
[1642974384959,2.2532416,2439.1,2438.2,0.94463105]
[1642974385360,0.3,2439.1,2438.2,0.94463105]
[1642974385561,0.10601746,2439.6,2438.2,3.42586505]
[1642974385760,0.09328879,2439.6,2438.2,3.42586505]
[1642974385958,0.09328879,2439.6,2438.2,3.45238846]
[1642974386159,0.09328879,2439.6,2438.2,1.15001105]
[1642974386359,0.09328879,2439.6,2439.2,0.97364588]
[1642974387317,0.09328879,2439.6,2438.3,3.6627]
[1642974387713,0.09328879,2439.6,2438.8,1.40077242]
[1642974388313,0.87080051,2439.6,2439.1,0.86983903]
[1642974388515,0.09328879,2439.6,2439.1,0.86983903]
[1642974389319,1.1369,2440.2,2439.2,1.29763291]
[1642974389519,0.77751172,2439.7,2439.0,0.04491117]
[1642974389717,1.1579,2440.3,2439.0,0.04491117]
[1642974390516,2.4579,2440.3,2439.0,0.04491117]
[1642974390716,0.77751172,2439.9,2439.4,0.91804478]
[1642974390915,0.77751172,2439.9,2439.2,1.38217945]
[1642974391155,0.77751172,2439.9,2439.0,0.04491117]
[1642974391961,0.77751172,2439.9,2438.7,0.01299521]
[1642974392263,0.77751172,2439.9,2438.0,1.43725361]
[1642974392264,0.01230985,2439.6,2438.0,1.43725361]
[1642974393062,0.01230985,2439.6,2438.2,1.09550899]
[1642974393262,0.494,2439.5,2438.2,1.09550899]
[1642974393465,1.41329456,2439.2,2438.4,1.27912531]
[1642974393663,0.3,2439.2,2438.4,1.27912531]
[1642974393865,0.01230985,2439.6,2438.4,1.27912531]
[1642974394066,1.3,2439.8,2438.4,1.27912531]
[1642974394464,0.3,2439.8,2438.4,1.27912531]
[1642974394667,2.5076111,2440.1,2439.4,1.44207235]
[1642974394907,0.47621858,2439.3,2438.5,2.0]
[1642974395111,0.47621858,2439.3,2438.5,0.20538]
[1642974395507,0.47621858,2439.3,2438.4,0.44938]
[1642974395807,0.47621858,2439.3,2439.1,1.19715083]
[1642974396507,0.47621858,2439.3,2438.4,0.44938]
[1642974396707,0.47621858,2439.3,2439.0,1.12192077]
[1642974397516,0.47621858,2439.3,2439.0,2.59840308]
[1642974398116,0.47621858,2439.3,2438.4,0.44938]
[1642974398957,0.47621858,2439.3,2438.5,1.31867397]
[1642974399158,0.47621858,2439.3,2438.4,0.44938]
[1642974399359,1.39538099,2439.2,2438.3,0.494]
[1642974399572,0.01225391,2439.0,2437.8,1.43725361]
[1642974399763,0.01201416,2438.4,2436.9,0.213]
[1642974400063,0.01288604,2437.8,2436.9,0.213]
[1642974400263,0.03584755,2437.6,2436.9,0.213]
[1642974400470,0.20491,2437.5,2436.9,0.213]
[1642974400662,0.03615178,2437.4,2436.9,0.213]
[1642974400865,0.20491,2437.3,2436.2,0.3153]
[1642974401064,0.05188082,2437.1,2436.2,0.3153]
[1642974401261,0.03479542,2437.2,2436.2,0.3153]
[1642974401464,0.06524466,2436.9,2436.2,0.3153]
[1642974401671,0.03823935,2436.4,2436.2,0.3153]
[1642974401865,0.20491,2436.3,2436.2,0.3153]
[1642974402333,0.20491,2436.3,2434.3,0.36682397]
[1642974402334,7.65,2436.2,2434.3,0.36682397]
[1642974402523,7.65,2436.2,2434.7,0.01226246]
[1642974402524,1.0,2436.1,2434.7,0.01226246]
[1642974402724,0.20491,2436.0,2434.7,0.01226246]
[1642974402928,0.20491,2436.0,2434.4,0.04711493]
[1642974403132,2.04041572,2435.9,2434.4,0.04491117]
[1642974403330,1.09263743,2434.8,2434.0,0.00220376]
[1642974403530,0.20491,2435.1,2434.0,0.00220376]
[1642974403730,0.09328879,2435.3,2433.9,0.17675403]
[1642974403928,0.09328879,2435.3,2434.1,0.06863328]
[1642974404130,2.0,2436.1,2434.5,0.01207224]
[1642974404527,1.41416911,2435.6,2434.6,0.06863328]
[1642974404732,1.41416911,2435.6,2434.5,0.01207224]
[1642974404733,0.20491,2435.5,2434.5,0.01207224]
[1642974404928,0.20491,2435.5,2434.0,0.00220376]
[1642974405127,0.20491,2435.5,2433.9,0.06863328]
[1642974405527,1.33397056,2435.0,2434.5,0.89337916]
[1642974405930,0.20491,2434.9,2434.5,0.89337916]
[1642974406155,0.20491,2435.2,2434.5,0.89337916]
[1642974406355,0.20491,2435.2,2434.9,0.83333505]
[1642974406552,0.20491,2435.2,2434.3,1.21172213]
[1642974407356,1.45741457,2435.2,2434.3,1.21172213]
[1642974407554,0.20491,2435.4,2435.1,1.1413748]
[1642974407755,1.1841,2435.9,2435.6,1.02283089]
[1642974407960,0.20491,2436.0,2434.8,0.01254248]
[1642974408159,0.09328879,2436.3,2434.8,0.01254248]
[1642974408360,0.29819879,2436.3,2434.8,0.01254248]
[1642974408659,1.5210526,2436.1,2435.4,1.38128511]
[1642974408858,1.5210526,2436.1,2435.2,1.02101037]
[1642974409059,1.5210526,2436.1,2434.8,0.01254248]
[1642974409464,1.7259626,2436.1,2434.8,0.01254248]
[1642974409809,1.7259626,2436.1,2434.2,1.44117099]
[1642974409810,0.01260768,2436.0,2434.2,1.44117099]
[1642974410013,0.01260768,2436.0,2434.9,1.15983774]
[1642974410014,2.01260768,2436.0,2434.9,1.15983774]
[1642974410213,0.01260768,2436.0,2434.9,1.15983774]
[1642974410413,1.01260768,2436.0,2434.9,1.15983774]
[1642974410616,0.01260768,2436.0,2434.9,1.15983774]
[1642974410814,0.20491,2435.9,2434.9,1.15983774]
[1642974411019,1.44058965,2435.9,2435.3,0.95374331]
[1642974411214,1.44058965,2435.9,2435.2,1.23934225]
[1642974411414,3.66812311,2435.9,2434.3,0.00220376]
[1642974411814,3.66812311,2435.9,2434.3,1.02753]
[1642974412017,1.44058965,2435.9,2434.3,1.02753]
[1642974412215,1.44058965,2435.9,2435.3,1.10935374]
[1642974413020,0.09328879,2436.3,2435.7,0.90216553]
[1642974413221,0.20491,2436.6,2435.7,0.90216553]
[1642974413758,0.20491,2436.6,2435.4,0.494]
[1642974413959,0.20491,2436.6,2434.8,2.23190376]
[1642974413960,3.78452938,2436.5,2434.8,0.00220376]
[1642974414158,3.78452938,2436.5,2434.7,0.06851253]
[1642974414159,0.01223132,2436.1,2434.7,0.06851253]
[1642974414357,0.01223132,2436.1,2434.6,0.00220376]
[1642974414563,0.20491,2436.2,2434.6,0.00220376]
[1642974414859,0.20491,2436.2,2435.4,1.08703053]
[1642974415058,1.39981268,2436.0,2435.4,1.08703053]
[1642974415658,0.20491,2436.4,2435.3,1.24741614]
[1642974415859,2.34310997,2436.7,2435.3,1.24741614]
[1642974416063,0.34310997,2436.7,2435.3,1.24741614]
[1642974416461,2.7115447,2436.7,2435.3,1.24741614]
[1642974416658,2.7115447,2436.7,2435.7,1.08743848]
[1642974416859,1.5011704,2436.3,2435.7,1.08743848]
[1642974417065,1.51496499,2435.9,2434.9,0.01292983]
[1642974417313,1.51496499,2435.9,2434.8,0.09491118]
[1642974417512,3.85403954,2435.9,2434.8,0.09491118]
[1642974417915,1.51496499,2435.9,2434.8,0.09491118]
[1642974418117,3.85583941,2435.9,2435.0,0.97865639]
[1642974418315,3.85583941,2435.9,2434.8,0.09491118]
[1642974418316,1.08221386,2435.5,2434.8,0.09491118]
[1642974418521,1.08221386,2435.5,2434.1,0.1642]
[1642974418918,1.38221386,2435.5,2434.1,0.1642]
[1642974419119,0.20491,2435.4,2434.1,0.1642]
[1642974419520,1.20491,2435.4,2434.4,1.07000022]
[1642974419723,0.20491,2435.4,2434.4,1.07000022]
[1642974419921,0.3128,2435.7,2434.1,1.41651137]